{"text_format":"1","workbook":"xlsx","n_sheets":4,"sheets":["Wariant do 5 instalacji","Wariant do 15 instalacji","Wariant do 25 instalacji","Wariant do 40 instalacji"],"not_rendered":{"charts":0,"images":0,"macros":1,"external_links":0,"defined_names":4,"comments":0,"pivot_tables":0},"unopened":[],"bounds":{"document_bytes":16777216,"sheet_cells":100000,"rows_first":2000,"rows_last":500,"rows_between":2000,"halvings":0,"cell_chars":16384,"cell_head_chars":4096},"cells_cut":0,"cells_raw":0,"read":"whole","date_system":"1900"}

{"sheet":"Wariant do 5 instalacji","index":0,"n_rows":37,"n_cols":8,"rows_kept":37,"cut":false,"hidden":false,"merged":[[0,0,0,1],[0,2,0,6],[11,2,11,3],[11,4,11,6],[18,2,18,3],[9,2,9,5]]}
["OSD:"]
["Lp.","Oznaczenie prosumenta","Lokalizacja mikroinstalacji","Rodzaj mikroinstalacji *","Zainstalowana moc elektryczna (kW)","Ilość energii elektrycznej wytworzonej w mikroinstalacji (kWh)","Ilość energii elektrycznej wytworzonej w mikroinstalacji i wprowadzonej do sieci OSD (kWh)","OSD"]
[null,1,2,3,4,5,6,7]
[1,null,null,null,null,null,null,{"$f":"IF(B4=0, \"\", $C$1)","v":""}]
[2,null,null,null,null,null,null,{"$f":"IF(B5=0, \"\", $C$1)","v":""}]
[3,null,null,null,null,null,null,{"$f":"IF(B6=0, \"\", $C$1)","v":""}]
[4,null,null,null,null,null,null,""]
[5,null,null,null,null,null,null,""]
[]
[null,null,"Informacja dodatkowa dotycząca liczby wydanych w okresie sprawozdawczym odmów przyłączenia mikroinstalacji prosumenckich do sieci OSD (proszę podać liczbę)."]
[]
[null,null,"Podpisy osób upoważnionych do reprezentacji Przedsiębiorstwa "]
[]
[]
[null,null,null,null,null,null,"Imię i nazwisko osoby bezpośrednio sporządzającej sprawozdanie:"]
[null,null,null,null,null,null,"nr tel. :"]
[null,null,null,null,null,null,"e-mail:"]
[]
[null,null,"* Objaśnienie do kolumny \"Rodzaj mikroinstalacji\""]
[null,null,"Kod literowy","Typ źródła OZE"]
[null,null,"WOA","elektrownia wodna przepływowa do 0,3 MW"]
[null,null,"WIL","elektrownia wiatrowa na lądzie"]
[null,null,"WIM","elektrownia wiatrowa na morzu"]
[null,null,"GEA","elektrownia geotermalna"]
[null,null,"PVA","wytwarzające z promieniowania słonecznego"]
[null,null,"BGO","wytwarzające z biogazu z oczyszczalni ścieków"]
[null,null,"BGR","wytwarzające z biogazu rolniczego"]
[null,null,"BGS","wytwarzające z biogazu składowiskowego"]
[null,null,"BMM","wytwarzające z biomasy mieszanej"]
[null,null,"BME","wytwarzające z biomasy z roślin energetycznych"]
[null,null,"BMG","wytwarzające z biomasy z odpadów leśnych, rolniczych, ogrodowych"]
[null,null,"BMK","wytwarzające z biomasy ze stałych odpadów komunalnych, m.in. ze spalarni odpadów "]
[null,null,"BMP","wytwarzające z biomasy z odpadów przemysłowych drewnopochodnych i celulozowo-papiern."]
[null,null,"WSB","realizujące technologię współspalania (paliwa kopalne i biomasa)"]
[null,null,"WSG","realizujące technologię współspalania (paliwa kopalne i biogaz)"]
[null,null,"WMA","wytwarzające z pływów morskich"]
[null,null,"WMB","wytwarzające z falowania powierzchni wody"]

{"sheet":"Wariant do 15 instalacji","index":1,"n_rows":47,"n_cols":8,"rows_kept":47,"cut":false,"hidden":false,"merged":[[0,0,0,1],[0,2,0,6],[21,2,21,3],[21,4,21,6],[28,2,28,3],[19,2,19,5]]}
["OSD:"]
["Lp.","Oznaczenie prosumenta","Lokalizacja mikroinstalacji","Rodzaj mikroinstalacji *","Zainstalowana moc elektryczna (kW)","Ilość energii elektrycznej wytworzonej w mikroinstalacji (kWh)","Ilość energii elektrycznej wytworzonej w mikroinstalacji i wprowadzonej do sieci OSD (kWh)","OSD"]
[null,1,2,3,4,5,6,7]
[1,null,null,null,null,null,null,{"$f":"IF(B4=0, \"\", $C$1)","v":""}]
[2,null,null,null,null,null,null,{"$f":"IF(B5=0, \"\", $C$1)","v":""}]
[3,null,null,null,null,null,null,{"$f":"IF(B6=0, \"\", $C$1)","v":""}]
[4,null,null,null,null,null,null,""]
[5,null,null,null,null,null,null,""]
[6,null,null,null,null,null,null,""]
[7,null,null,null,null,null,null,""]
[8,null,null,null,null,null,null,""]
[9,null,null,null,null,null,null,""]
[10,null,null,null,null,null,null,""]
[11,null,null,null,null,null,null,""]
[12,null,null,null,null,null,null,""]
[13,null,null,null,null,null,null,""]
[14,null,null,null,null,null,null,""]
[15,null,null,null,null,null,null,""]
[]
[null,null,"Informacja dodatkowa dotycząca liczby wydanych w okresie sprawozdawczym odmów przyłączenia mikroinstalacji prosumenckich do sieci OSD (proszę podać liczbę)."]
[]
[null,null,"Podpisy osób upoważnionych do reprezentacji Przedsiębiorstwa:"]
[]
[]
[null,null,null,null,null,null,"Imię i nazwisko osoby bezpośrednio sporządzającej sprawozdanie:"]
[null,null,null,null,null,null,"nr tel. :"]
[null,null,null,null,null,null,"e-mail:"]
[]
[null,null,"* Objaśnienie do kolumny \"Rodzaj mikroinstalacji\""]
[null,null,"Kod literowy","Typ źródła OZE"]
[null,null,"WOA","elektrownia wodna przepływowa do 0,3 MW"]
[null,null,"WIL","elektrownia wiatrowa na lądzie"]
[null,null,"WIM","elektrownia wiatrowa na morzu"]
[null,null,"GEA","elektrownia geotermalna"]
[null,null,"PVA","wytwarzające z promieniowania słonecznego"]
[null,null,"BGO","wytwarzające z biogazu z oczyszczalni ścieków"]
[null,null,"BGR","wytwarzające z biogazu rolniczego"]
[null,null,"BGS","wytwarzające z biogazu składowiskowego"]
[null,null,"BMM","wytwarzające z biomasy mieszanej"]
[null,null,"BME","wytwarzające z biomasy z roślin energetycznych"]
[null,null,"BMG","wytwarzające z biomasy z odpadów leśnych, rolniczych, ogrodowych"]
[null,null,"BMK","wytwarzające z biomasy ze stałych odpadów komunalnych, m.in. ze spalarni odpadów "]
[null,null,"BMP","wytwarzające z biomasy z odpadów przemysłowych drewnopochodnych i celulozowo-papiern."]
[null,null,"WSB","realizujące technologię współspalania (paliwa kopalne i biomasa)"]
[null,null,"WSG","realizujące technologię współspalania (paliwa kopalne i biogaz)"]
[null,null,"WMA","wytwarzające z pływów morskich"]
[null,null,"WMB","wytwarzające z falowania powierzchni wody"]

{"sheet":"Wariant do 25 instalacji","index":2,"n_rows":57,"n_cols":8,"rows_kept":57,"cut":false,"hidden":false,"merged":[[0,0,0,1],[0,2,0,6],[31,2,31,3],[31,4,31,6],[38,2,38,3],[29,2,29,5]]}
["OSD:"]
["Lp.","Oznaczenie prosumenta","Lokalizacja mikroinstalacji","Rodzaj mikroinstalacji *","Zainstalowana moc elektryczna (kW)","Ilość energii elektrycznej wytworzonej w mikroinstalacji (kWh)","Ilość energii elektrycznej wytworzonej w mikroinstalacji i wprowadzonej do sieci OSD (kWh)","OSD"]
[null,1,2,3,4,5,6,7]
[1,null,null,null,null,null,null,{"$f":"IF(B4=0, \"\", $C$1)","v":""}]
[2,null,null,null,null,null,null,{"$f":"IF(B5=0, \"\", $C$1)","v":""}]
[3,null,null,null,null,null,null,{"$f":"IF(B6=0, \"\", $C$1)","v":""}]
[4,null,null,null,null,null,null,""]
[5,null,null,null,null,null,null,""]
[6,null,null,null,null,null,null,""]
[7,null,null,null,null,null,null,""]
[8,null,null,null,null,null,null,""]
[9,null,null,null,null,null,null,""]
[10,null,null,null,null,null,null,""]
[11,null,null,null,null,null,null,""]
[12,null,null,null,null,null,null,""]
[13,null,null,null,null,null,null,""]
[14,null,null,null,null,null,null,""]
[15,null,null,null,null,null,null,""]
[16,null,null,null,null,null,null,""]
[17,null,null,null,null,null,null,""]
[18,null,null,null,null,null,null,""]
[19,null,null,null,null,null,null,""]
[20,null,null,null,null,null,null,""]
[21,null,null,null,null,null,null,""]
[22,null,null,null,null,null,null,""]
[23,null,null,null,null,null,null,""]
[24,null,null,null,null,null,null,""]
[25,null,null,null,null,null,null,""]
[]
[null,null,"Informacja dodatkowa dotycząca liczby wydanych w okresie sprawozdawczym odmów przyłączenia mikroinstalacji prosumenckich do sieci OSD (proszę podać liczbę)."]
[]
[null,null,"Podpisy osób upoważnionych do reprezentacji Przedsiębiorstwa:"]
[]
[]
[null,null,null,null,null,null,"Imię i nazwisko osoby bezpośrednio sporządzającej sprawozdanie:"]
[null,null,null,null,null,null,"nr tel. :"]
[null,null,null,null,null,null,"e-mail:"]
[]
[null,null,"* Objaśnienie do kolumny \"Rodzaj mikroinstalacji\""]
[null,null,"Kod literowy","Typ źródła OZE"]
[null,null,"WOA","elektrownia wodna przepływowa do 0,3 MW"]
[null,null,"WIL","elektrownia wiatrowa na lądzie"]
[null,null,"WIM","elektrownia wiatrowa na morzu"]
[null,null,"GEA","elektrownia geotermalna"]
[null,null,"PVA","wytwarzające z promieniowania słonecznego"]
[null,null,"BGO","wytwarzające z biogazu z oczyszczalni ścieków"]
[null,null,"BGR","wytwarzające z biogazu rolniczego"]
[null,null,"BGS","wytwarzające z biogazu składowiskowego"]
[null,null,"BMM","wytwarzające z biomasy mieszanej"]
[null,null,"BME","wytwarzające z biomasy z roślin energetycznych"]
[null,null,"BMG","wytwarzające z biomasy z odpadów leśnych, rolniczych, ogrodowych"]
[null,null,"BMK","wytwarzające z biomasy ze stałych odpadów komunalnych, m.in. ze spalarni odpadów "]
[null,null,"BMP","wytwarzające z biomasy z odpadów przemysłowych drewnopochodnych i celulozowo-papiern."]
[null,null,"WSB","realizujące technologię współspalania (paliwa kopalne i biomasa)"]
[null,null,"WSG","realizujące technologię współspalania (paliwa kopalne i biogaz)"]
[null,null,"WMA","wytwarzające z pływów morskich"]
[null,null,"WMB","wytwarzające z falowania powierzchni wody"]

{"sheet":"Wariant do 40 instalacji","index":3,"n_rows":72,"n_cols":8,"rows_kept":72,"cut":false,"hidden":false,"merged":[[0,0,0,1],[46,4,46,6],[53,2,53,3],[46,2,46,3],[0,2,0,6],[44,2,44,5]]}
["OSD:"]
["Lp.","Oznaczenie prosumenta","Lokalizacja mikroinstalacji","Rodzaj mikroinstalacji *","Zainstalowana moc elektryczna (kW)","Ilość energii elektrycznej wytworzonej w mikroinstalacji (kWh)","Ilość energii elektrycznej wytworzonej w mikroinstalacji i wprowadzonej do sieci OSD (kWh)","OSD"]
[null,1,2,3,4,5,6,7]
[1,null,null,null,null,null,null,{"$f":"IF(B4=0, \"\", $C$1)","v":""}]
[2,null,null,null,null,null,null,{"$f":"IF(B5=0, \"\", $C$1)","v":""}]
[3,null,null,null,null,null,null,{"$f":"IF(B6=0, \"\", $C$1)","v":""}]
[4,null,null,null,null,null,null,""]
[5,null,null,null,null,null,null,""]
[6,null,null,null,null,null,null,""]
[7,null,null,null,null,null,null,""]
[8,null,null,null,null,null,null,""]
[9,null,null,null,null,null,null,""]
[10,null,null,null,null,null,null,""]
[11,null,null,null,null,null,null,""]
[12,null,null,null,null,null,null,""]
[13,null,null,null,null,null,null,""]
[14,null,null,null,null,null,null,""]
[15,null,null,null,null,null,null,""]
[16,null,null,null,null,null,null,""]
[17,null,null,null,null,null,null,""]
[18,null,null,null,null,null,null,""]
[19,null,null,null,null,null,null,""]
[20,null,null,null,null,null,null,""]
[21,null,null,null,null,null,null,""]
[22,null,null,null,null,null,null,""]
[23,null,null,null,null,null,null,""]
[24,null,null,null,null,null,null,""]
[25,null,null,null,null,null,null,""]
[26,null,null,null,null,null,null,""]
[27,null,null,null,null,null,null,""]
[28,null,null,null,null,null,null,""]
[29,null,null,null,null,null,null,""]
[30,null,null,null,null,null,null,""]
[31,null,null,null,null,null,null,""]
[32,null,null,null,null,null,null,""]
[33,null,null,null,null,null,null,""]
[34,null,null,null,null,null,null,""]
[35,null,null,null,null,null,null,""]
[36,null,null,null,null,null,null,""]
[37,null,null,null,null,null,null,""]
[38,null,null,null,null,null,null,""]
[39,null,null,null,null,null,null,""]
[40,null,null,null,null,null,null,""]
[]
[null,null,"Informacja dodatkowa dotycząca liczby wydanych w okresie sprawozdawczym odmów przyłączenia mikroinstalacji prosumenckich do sieci OSD (proszę podać liczbę)."]
[]
[null,null,"Podpisy osób upoważnionych do reprezentacji Przedsiębiorstwa:"]
[]
[]
[null,null,null,null,null,null,"Imię i nazwisko osoby bezpośrednio sporządzającej sprawozdanie:"]
[null,null,null,null,null,null,"nr tel. :"]
[null,null,null,null,null,null,"e-mail:"]
[]
[null,null,"* Objaśnienie do kolumny \"Rodzaj mikroinstalacji\""]
[null,null,"Kod literowy","Typ źródła OZE"]
[null,null,"WOA","elektrownia wodna przepływowa do 0,3 MW"]
[null,null,"WIL","elektrownia wiatrowa na lądzie"]
[null,null,"WIM","elektrownia wiatrowa na morzu"]
[null,null,"GEA","elektrownia geotermalna"]
[null,null,"PVA","wytwarzające z promieniowania słonecznego"]
[null,null,"BGO","wytwarzające z biogazu z oczyszczalni ścieków"]
[null,null,"BGR","wytwarzające z biogazu rolniczego"]
[null,null,"BGS","wytwarzające z biogazu składowiskowego"]
[null,null,"BMM","wytwarzające z biomasy mieszanej"]
[null,null,"BME","wytwarzające z biomasy z roślin energetycznych"]
[null,null,"BMG","wytwarzające z biomasy z odpadów leśnych, rolniczych, ogrodowych"]
[null,null,"BMK","wytwarzające z biomasy ze stałych odpadów komunalnych, m.in. ze spalarni odpadów "]
[null,null,"BMP","wytwarzające z biomasy z odpadów przemysłowych drewnopochodnych i celulozowo-papiern."]
[null,null,"WSB","realizujące technologię współspalania (paliwa kopalne i biomasa)"]
[null,null,"WSG","realizujące technologię współspalania (paliwa kopalne i biogaz)"]
[null,null,"WMA","wytwarzające z pływów morskich"]
[null,null,"WMB","wytwarzające z falowania powierzchni wody"]